[Event "Titled Tuesday Blitz May 03 Early 2022"]
[White "Araujo Filho, Luiz Antonio Coel"]
[Black "Petrovic, Aleksa"]
[WhiteFideId "2130661"]
[BlackFideId "967629"]
[WhiteElo "2304"]
[BlackElo "2198"]
[Result "0-1"]
[Round "10"]
[TimeControl "180+1"]
[Date "2022.05.03"]
[WhiteClock "0:00:03"]
[BlackClock "0:00:04"]

1. d4 {[%clk 0:03:00]}  Nf6 {[%clk 0:02:55]} 2. Nf3 {[%clk 0:03:00]}  e6 {[%clk 0:02:55]} 3. e3 {[%clk 0:02:56]}  b6 {[%clk 0:02:52]} 4. Bd3 {[%clk 0:02:55]}  Bb7 {[%clk 0:02:52]} 5. Nbd2 {[%clk 0:02:55]}  d5 {[%clk 0:02:50]} 6. Qe2 {[%clk 0:02:55]}  Bd6 {[%clk 0:02:47]} 7. e4 {[%clk 0:02:55]}  dxe4 {[%clk 0:02:41]} 8. Nxe4 {[%clk 0:02:55]}  Nxe4 {[%clk 0:02:22]} 9. Bxe4 {[%clk 0:02:54]}  Bxe4 {[%clk 0:02:21]} 10. Qxe4 {[%clk 0:02:55]}  Nd7 {[%clk 0:02:19]} 11. O-O {[%clk 0:02:53]}  O-O {[%clk 0:02:17]} 12. c4 {[%clk 0:02:50]}  Nf6 {[%clk 0:02:14]} 13. Qe2 {[%clk 0:02:50]}  Qc8 {[%clk 0:02:08]} 14. Bg5 {[%clk 0:02:48]}  Nd7 {[%clk 0:01:57]} 15. Rad1 {[%clk 0:02:40]}  Re8 {[%clk 0:01:53]} 16. Qc2 {[%clk 0:02:28]}  h6 {[%clk 0:01:48]} 17. Bh4 {[%clk 0:02:26]}  Nf8 {[%clk 0:01:44]} 18. Rfe1 {[%clk 0:02:17]}  Ng6 {[%clk 0:01:42]} 19. Bg3 {[%clk 0:02:17]}  Qb7 {[%clk 0:01:32]} 20. c5 {[%clk 0:01:54]}  Bxg3 {[%clk 0:01:31]} 21. hxg3 {[%clk 0:01:53]}  Rad8 {[%clk 0:01:26]} 22. b4 {[%clk 0:01:21]}  Rd5 {[%clk 0:01:24]} 23. a4 {[%clk 0:01:19]}  Red8 {[%clk 0:01:19]} 24. Rxe6 {[%clk 0:00:43]}  fxe6 {[%clk 0:01:13]} 25. Qxg6 {[%clk 0:00:43]}  Qc6 {[%clk 0:01:13]} 26. Re1 {[%clk 0:00:44]}  Qe8 {[%clk 0:01:08]} 27. Qg4 {[%clk 0:00:36]}  Qf7 {[%clk 0:01:00]} 28. Rxe6 {[%clk 0:00:31]}  Qf5 {[%clk 0:00:33]} 29. Qxf5 {[%clk 0:00:18]}  Rxf5 {[%clk 0:00:34]} 30. Rc6 {[%clk 0:00:12]}  Rf7 {[%clk 0:00:31]} 31. a5 {[%clk 0:00:07]}  bxa5 {[%clk 0:00:26]} 32. bxa5 {[%clk 0:00:08]}  Rb8 {[%clk 0:00:23]} 33. Ra6 {[%clk 0:00:07]}  Ra8 {[%clk 0:00:17]} 34. Ne5 {[%clk 0:00:07]}  Re7 {[%clk 0:00:17]} 35. Nc6 {[%clk 0:00:07]}  Rd7 {[%clk 0:00:17]} 36. Rxa7 {[%clk 0:00:03]}  Rxa7 {[%clk 0:00:16]} 37. Nxa7 {[%clk 0:00:04]}  Rxd4 {[%clk 0:00:16]} 38. Nb5 {[%clk 0:00:04]}  Ra4 {[%clk 0:00:16]} 39. Nxc7 {[%clk 0:00:04]}  Rxa5 {[%clk 0:00:16]} 40. Ne6 {[%clk 0:00:04]}  Kf7 {[%clk 0:00:16]} 41. Nd4 {[%clk 0:00:04]}  Rxc5 {[%clk 0:00:15]} 42. g4 {[%clk 0:00:03]}  Kf6 {[%clk 0:00:15]} 43. f3 {[%clk 0:00:04]}  Ke5 {[%clk 0:00:14]} 44. Ne2 {[%clk 0:00:04]}  Rc2 {[%clk 0:00:14]} 45. Ng3 {[%clk 0:00:04]}  g6 {[%clk 0:00:12]} 46. Kh2 {[%clk 0:00:04]}  Kf4 {[%clk 0:00:11]} 47. Nf1 {[%clk 0:00:03]}  Rf2 {[%clk 0:00:09]} 48. Ng3 {[%clk 0:00:04]}  Ra2 {[%clk 0:00:06]} 49. Nf1 {[%clk 0:00:04]}  Ra4 {[%clk 0:00:05]} 50. Ng3 {[%clk 0:00:04]}  Ra1 {[%clk 0:00:05]} 51. Nh1 {[%clk 0:00:04]}  Rf1 {[%clk 0:00:04]} 52. Ng3 {[%clk 0:00:04]}  Re1 {[%clk 0:00:05]} 53. Nh1 {[%clk 0:00:04]}  h5 {[%clk 0:00:03]} 54. gxh5 {[%clk 0:00:04]}  gxh5 {[%clk 0:00:04]} 55. Ng3 {[%clk 0:00:04]}  h4 {[%clk 0:00:04]} 56. Nh5+ {[%clk 0:00:05]}  Kg5 {[%clk 0:00:04]} 57. Ng7 {[%clk 0:00:05]}  Re7 {[%clk 0:00:05]} 58. f4+ {[%clk 0:00:03]}  Kg6 {[%clk 0:00:04]} 0-1


[Site "https://www.chess.com"]

[Event "Titled Tuesday Blitz May 03 Early 2022"]
[White "Baches Garcia, Guillermo"]
[Black "Silvestre, Christian"]
[WhiteFideId "2209764"]
[BlackFideId "30956269"]
[WhiteElo "2503"]
[BlackElo "2360"]
[Result "0-1"]
[Round "10"]
[TimeControl "180+1"]
[Date "2022.05.03"]
[WhiteClock "0:00:10"]
[BlackClock "0:00:10"]

1. e4 {[%clk 0:03:00]}  c6 {[%clk 0:02:57]} 2. c4 {[%clk 0:03:00]}  g6 {[%clk 0:02:53]} 3. Nc3 {[%clk 0:02:59]}  Bg7 {[%clk 0:02:51]} 4. d4 {[%clk 0:02:59]}  c5 {[%clk 0:02:42]} 5. Nf3 {[%clk 0:02:52]}  cxd4 {[%clk 0:02:42]} 6. Nxd4 {[%clk 0:02:53]}  Nc6 {[%clk 0:02:42]} 7. Be3 {[%clk 0:02:52]}  Nf6 {[%clk 0:02:40]} 8. Be2 {[%clk 0:02:52]}  O-O {[%clk 0:02:39]} 9. O-O {[%clk 0:02:51]}  d6 {[%clk 0:02:39]} 10. f3 {[%clk 0:02:51]}  Bd7 {[%clk 0:02:39]} 11. Qd2 {[%clk 0:02:50]}  Rc8 {[%clk 0:02:38]} 12. Nc2 {[%clk 0:02:48]}  Qa5 {[%clk 0:02:34]} 13. Rac1 {[%clk 0:02:41]}  Rfd8 {[%clk 0:02:24]} 14. Rfd1 {[%clk 0:02:38]}  h5 {[%clk 0:02:21]} 15. Bf1 {[%clk 0:02:28]}  h4 {[%clk 0:02:19]} 16. Rb1 {[%clk 0:02:23]}  h3 {[%clk 0:02:18]} 17. g3 {[%clk 0:02:22]}  Ne5 {[%clk 0:02:17]} 18. Qf2 {[%clk 0:02:06]}  Nxc4 {[%clk 0:02:12]} 19. Bxc4 {[%clk 0:02:05]}  Rxc4 {[%clk 0:02:13]} 20. Bxa7 {[%clk 0:02:04]}  Rdc8 {[%clk 0:02:03]} 21. Bb6 {[%clk 0:01:52]}  Qa6 {[%clk 0:01:59]} 22. Bd4 {[%clk 0:01:47]}  b5 {[%clk 0:01:49]} 23. a3 {[%clk 0:01:37]}  Qb7 {[%clk 0:01:46]} 24. Nb4 {[%clk 0:01:27]}  Be6 {[%clk 0:01:21]} 25. Rd3 {[%clk 0:01:23]}  Nd7 {[%clk 0:01:05]} 26. Bxg7 {[%clk 0:01:17]}  Kxg7 {[%clk 0:01:06]} 27. Rd4 {[%clk 0:01:04]}  Ne5 {[%clk 0:01:00]} 28. Rbd1 {[%clk 0:00:59]}  Qb6 {[%clk 0:00:53]} 29. Ne2 {[%clk 0:00:51]}  Rxd4 {[%clk 0:00:44]} 30. Nxd4 {[%clk 0:00:46]}  Qc5 {[%clk 0:00:24]} 31. f4 {[%clk 0:00:28]}  Ng4 {[%clk 0:00:21]} 32. Nxe6+ {[%clk 0:00:28]}  fxe6 {[%clk 0:00:22]} 33. Qxc5 {[%clk 0:00:29]}  Rxc5 {[%clk 0:00:22]} 34. Re1 {[%clk 0:00:16]}  g5 {[%clk 0:00:21]} 35. fxg5 {[%clk 0:00:15]}  Ne5 {[%clk 0:00:22]} 36. Kf2 {[%clk 0:00:13]}  Kg6 {[%clk 0:00:20]} 37. Ke2 {[%clk 0:00:13]}  Kxg5 {[%clk 0:00:20]} 38. Rf1 {[%clk 0:00:12]}  Kg6 {[%clk 0:00:19]} 39. Rf8 {[%clk 0:00:12]}  Ng4 {[%clk 0:00:18]} 40. Rh8 {[%clk 0:00:11]}  Nxh2 {[%clk 0:00:17]} 41. Rxh3 {[%clk 0:00:11]}  Ng4 {[%clk 0:00:17]} 42. Rh8 {[%clk 0:00:11]}  Nf6 {[%clk 0:00:16]} 43. Rb8 {[%clk 0:00:10]}  Nxe4 {[%clk 0:00:15]} 44. g4 {[%clk 0:00:10]}  Nf6 {[%clk 0:00:14]} 45. Nd3 {[%clk 0:00:10]}  Rc2+ {[%clk 0:00:12]} 46. Ke3 {[%clk 0:00:10]}  Nd5+ {[%clk 0:00:11]} 47. Kd4 {[%clk 0:00:10]}  Rc4# {[%clk 0:00:10]} 0-1


[Site "https://www.chess.com"]

[Event "Titled Tuesday Blitz May 03 Early 2022"]
[White "Bas Mas, Jose Joaquin"]
[Black "Richter, Nils"]
[WhiteFideId "22219064"]
[BlackFideId "12990809"]
[WhiteElo "2212"]
[BlackElo "2243"]
[Result "1/2-1/2"]
[Round "10"]
[TimeControl "180+1"]
[Date "2022.05.03"]
[WhiteClock "0:00:07"]
[BlackClock "0:00:05"]

1. e4 {[%clk 0:03:00]}  e6 {[%clk 0:02:59]} 2. Nf3 {[%clk 0:02:59]}  d5 {[%clk 0:03:00]} 3. e5 {[%clk 0:02:59]}  c5 {[%clk 0:03:00]} 4. b4 {[%clk 0:03:00]}  cxb4 {[%clk 0:02:59]} 5. d4 {[%clk 0:03:00]}  a5 {[%clk 0:02:59]} 6. a3 {[%clk 0:02:59]}  Nc6 {[%clk 0:02:59]} 7. axb4 {[%clk 0:02:58]}  Bxb4+ {[%clk 0:02:56]} 8. c3 {[%clk 0:02:58]}  Be7 {[%clk 0:02:57]} 9. Bd3 {[%clk 0:02:58]}  Bd7 {[%clk 0:02:53]} 10. O-O {[%clk 0:02:57]}  a4 {[%clk 0:02:51]} 11. Na3 {[%clk 0:02:54]}  Nh6 {[%clk 0:02:44]} 12. Nb5 {[%clk 0:02:52]}  Qa5 {[%clk 0:02:30]} 13. Ba3 {[%clk 0:02:38]}  Bxa3 {[%clk 0:02:26]} 14. Rxa3 {[%clk 0:02:39]}  O-O {[%clk 0:02:25]} 15. Qa1 {[%clk 0:02:34]}  Nxe5 {[%clk 0:02:22]} 16. Nxe5 {[%clk 0:02:26]}  Bxb5 {[%clk 0:02:22]} 17. Bxb5 {[%clk 0:02:25]}  Qxb5 {[%clk 0:02:23]} 18. Rb1 {[%clk 0:02:25]}  Qa5 {[%clk 0:02:02]} 19. Rxb7 {[%clk 0:02:17]}  Rfb8 {[%clk 0:02:02]} 20. Nc6 {[%clk 0:02:13]}  Rxb7 {[%clk 0:01:55]} 21. Nxa5 {[%clk 0:02:12]}  Rxa5 {[%clk 0:01:56]} 22. h3 {[%clk 0:02:06]}  Rba7 {[%clk 0:01:53]} 23. Qa2 {[%clk 0:02:01]}  Nf5 {[%clk 0:01:51]} 24. g4 {[%clk 0:02:00]}  Nd6 {[%clk 0:01:50]} 25. Qb2 {[%clk 0:01:48]}  Ra8 {[%clk 0:01:49]} 26. Ra2 {[%clk 0:01:43]}  a3 {[%clk 0:01:46]} 27. Qb4 {[%clk 0:01:40]}  Nc4 {[%clk 0:01:44]} 28. f4 {[%clk 0:01:38]}  g6 {[%clk 0:01:44]} 29. f5 {[%clk 0:01:34]}  R5a6 {[%clk 0:01:40]} 30. Qe7 {[%clk 0:01:12]}  exf5 {[%clk 0:01:35]} 31. gxf5 {[%clk 0:01:12]}  Rb6 {[%clk 0:01:30]} 32. Qg5 {[%clk 0:01:08]}  Rb1+ {[%clk 0:01:28]} 33. Kf2 {[%clk 0:01:04]}  Rb2+ {[%clk 0:01:23]} 34. Kg3 {[%clk 0:01:03]}  Rxa2 {[%clk 0:01:17]} 35. f6 {[%clk 0:01:03]}  Nd6 {[%clk 0:01:10]} 36. Qxd5 {[%clk 0:00:57]}  Nf5+ {[%clk 0:00:37]} 37. Kf3 {[%clk 0:00:56]}  Rc8 {[%clk 0:00:32]} 38. Qxa2 {[%clk 0:00:53]}  Rxc3+ {[%clk 0:00:32]} 39. Ke4 {[%clk 0:00:51]}  Rxh3 {[%clk 0:00:27]} 40. Qc2 {[%clk 0:00:28]}  Rh4+ {[%clk 0:00:22]} 41. Ke5 {[%clk 0:00:27]}  h5 {[%clk 0:00:20]} 42. Qc8+ {[%clk 0:00:25]}  Kh7 {[%clk 0:00:20]} 43. Qf8 {[%clk 0:00:23]}  Rxd4 {[%clk 0:00:13]} 44. Qxf7+ {[%clk 0:00:21]}  Kh6 {[%clk 0:00:13]} 45. Qf8+ {[%clk 0:00:21]}  Kg5 {[%clk 0:00:13]} 46. Qxa3 {[%clk 0:00:20]}  Rd7 {[%clk 0:00:08]} 47. Qc1+ {[%clk 0:00:18]}  Kg4 {[%clk 0:00:07]} 48. Qf4+ {[%clk 0:00:18]}  Kh3 {[%clk 0:00:07]} 49. Qg5 {[%clk 0:00:17]}  Ra7 {[%clk 0:00:02]} 50. Qxg6 {[%clk 0:00:14]}  Ra5+ {[%clk 0:00:02]} 51. Ke4 {[%clk 0:00:11]}  Ng3+ {[%clk 0:00:02]} 52. Kd3 {[%clk 0:00:09]}  Ra3+ {[%clk 0:00:01]} 53. Kc4 {[%clk 0:00:09]}  h4 {[%clk 0:00:02]} 54. f7 {[%clk 0:00:08]}  Rf3 {[%clk 0:00:03]} 55. Qe6+ {[%clk 0:00:07]}  Kg2 {[%clk 0:00:03]} 56. Qe7 {[%clk 0:00:06]}  h3 {[%clk 0:00:03]} 57. f8=Q {[%clk 0:00:07]}  Rxf8 {[%clk 0:00:03]} 58. Qxf8 {[%clk 0:00:07]}  h2 {[%clk 0:00:04]} 59. Qa8+ {[%clk 0:00:06]}  Kg1 {[%clk 0:00:04]} 60. Qf3 {[%clk 0:00:06]}  h1=Q {[%clk 0:00:04]} 61. Qxg3+ {[%clk 0:00:07]}  Qg2 {[%clk 0:00:04]} 62. Qxg2+ {[%clk 0:00:07]}  Kxg2 {[%clk 0:00:05]} 1/2-1/2


[Site "https://www.chess.com"]

[Event "Titled Tuesday Blitz May 03 Early 2022"]
[White "Bocharov, Dmitry"]
[Black "Stribuk, Artiom"]
[WhiteFideId "4138716"]
[BlackFideId "13515659"]
[WhiteElo "2541"]
[BlackElo "2259"]
[Result "1-0"]
[Round "10"]
[TimeControl "180+1"]
[Date "2022.05.03"]
[WhiteClock "0:00:57"]
[BlackClock "0:00:02"]

1. d4 {[%clk 0:02:58]}  Nf6 {[%clk 0:02:59]} 2. c4 {[%clk 0:02:58]}  c5 {[%clk 0:02:58]} 3. d5 {[%clk 0:02:58]}  b5 {[%clk 0:02:59]} 4. cxb5 {[%clk 0:02:58]}  a6 {[%clk 0:02:59]} 5. bxa6 {[%clk 0:02:59]}  g6 {[%clk 0:02:58]} 6. Nc3 {[%clk 0:02:59]}  Bg7 {[%clk 0:02:59]} 7. e4 {[%clk 0:02:59]}  O-O {[%clk 0:02:59]} 8. a7 {[%clk 0:02:59]}  Rxa7 {[%clk 0:02:57]} 9. Nf3 {[%clk 0:02:59]}  e6 {[%clk 0:02:57]} 10. Be2 {[%clk 0:02:59]}  exd5 {[%clk 0:02:56]} 11. exd5 {[%clk 0:02:58]}  d6 {[%clk 0:02:53]} 12. O-O {[%clk 0:02:57]}  Na6 {[%clk 0:02:48]} 13. Nd2 {[%clk 0:02:52]}  Nc7 {[%clk 0:02:30]} 14. Nc4 {[%clk 0:02:48]}  Ba6 {[%clk 0:02:25]} 15. Bf4 {[%clk 0:02:46]}  Bxc4 {[%clk 0:01:44]} 16. Bxc4 {[%clk 0:02:47]}  Nh5 {[%clk 0:01:42]} 17. Be3 {[%clk 0:02:40]}  Qb8 {[%clk 0:01:41]} 18. Qd2 {[%clk 0:02:39]}  Qb4 {[%clk 0:01:40]} 19. Be2 {[%clk 0:02:38]}  Rb8 {[%clk 0:01:28]} 20. Bxh5 {[%clk 0:02:27]}  gxh5 {[%clk 0:01:28]} 21. Bh6 {[%clk 0:02:27]}  Qg4 {[%clk 0:01:05]} 22. h3 {[%clk 0:02:15]}  Bxh6 {[%clk 0:01:00]} 23. Qxh6 {[%clk 0:02:14]}  Qg6 {[%clk 0:01:00]} 24. Qd2 {[%clk 0:02:13]}  Nb5 {[%clk 0:00:47]} 25. Nxb5 {[%clk 0:01:59]}  Rxb5 {[%clk 0:00:48]} 26. Rae1 {[%clk 0:01:50]}  Rb8 {[%clk 0:00:27]} 27. Re3 {[%clk 0:01:46]}  h4 {[%clk 0:00:27]} 28. Rfe1 {[%clk 0:01:44]}  Rxa2 {[%clk 0:00:21]} 29. Qc3 {[%clk 0:01:39]}  Raa8 {[%clk 0:00:16]} 30. Re4 {[%clk 0:01:39]}  h5 {[%clk 0:00:12]} 31. Rxh4 {[%clk 0:01:39]}  Re8 {[%clk 0:00:12]} 32. Re3 {[%clk 0:01:23]}  Rxe3 {[%clk 0:00:11]} 33. Qxe3 {[%clk 0:01:22]}  Ra1+ {[%clk 0:00:05]} 34. Kh2 {[%clk 0:01:22]}  Rb1 {[%clk 0:00:05]} 35. Re4 {[%clk 0:01:17]}  Rxb2 {[%clk 0:00:04]} 36. Re8+ {[%clk 0:01:17]}  Kh7 {[%clk 0:00:05]} 37. Qc3 {[%clk 0:00:59]}  Qg7 {[%clk 0:00:04]} 38. Qf3 {[%clk 0:01:00]}  Rb4 {[%clk 0:00:03]} 39. Qxh5+ {[%clk 0:00:57]}  Qh6 {[%clk 0:00:02]} 40. Qxf7+ {[%clk 0:00:57]}  Qg7 {[%clk 0:00:02]} 41. Qh5+ {[%clk 0:00:57]} 1-0


[Site "https://www.chess.com"]

[Event "Titled Tuesday Blitz May 03 Early 2022"]
[White "Ciorgovean, Iustin"]
[Black "Melian, Juan Sebastian"]
[WhiteFideId "1242911"]
[BlackFideId "3706575"]
[WhiteElo "2075"]
[BlackElo "1842"]
[Result "0-1"]
[Round "10"]
[TimeControl "180+1"]
[Date "2022.05.03"]
[WhiteClock "0:00:13"]
[BlackClock "0:00:05"]

1. d4 {[%clk 0:03:00]}  Nf6 {[%clk 0:03:00]} 2. c4 {[%clk 0:03:01]}  e6 {[%clk 0:02:54]} 3. Nc3 {[%clk 0:03:01]}  Bb4 {[%clk 0:02:55]} 4. Qc2 {[%clk 0:03:01]}  d5 {[%clk 0:02:52]} 5. a3 {[%clk 0:03:01]}  Be7 {[%clk 0:02:46]} 6. cxd5 {[%clk 0:02:59]}  exd5 {[%clk 0:02:36]} 7. Bg5 {[%clk 0:02:57]}  c6 {[%clk 0:02:36]} 8. e3 {[%clk 0:02:57]}  O-O {[%clk 0:02:36]} 9. Bd3 {[%clk 0:02:57]}  Nbd7 {[%clk 0:02:36]} 10. h3 {[%clk 0:02:56]}  Re8 {[%clk 0:02:36]} 11. Nf3 {[%clk 0:02:55]}  Ne4 {[%clk 0:02:30]} 12. Bxe4 {[%clk 0:02:49]}  dxe4 {[%clk 0:02:25]} 13. Nxe4 {[%clk 0:02:50]}  Bxg5 {[%clk 0:02:24]} 14. Nexg5 {[%clk 0:02:49]}  Nf6 {[%clk 0:02:24]} 15. Ne5 {[%clk 0:02:34]}  Re7 {[%clk 0:02:20]} 16. O-O {[%clk 0:02:26]}  h6 {[%clk 0:02:12]} 17. Ngf3 {[%clk 0:02:24]}  Be6 {[%clk 0:02:08]} 18. Rfe1 {[%clk 0:02:11]}  Rc8 {[%clk 0:02:08]} 19. b4 {[%clk 0:02:08]}  Bd5 {[%clk 0:02:05]} 20. e4 {[%clk 0:02:06]}  Bxe4 {[%clk 0:02:01]} 21. Rxe4 {[%clk 0:02:05]}  Nxe4 {[%clk 0:02:02]} 22. Qxe4 {[%clk 0:02:06]}  f6 {[%clk 0:02:03]} 23. Rc1 {[%clk 0:01:45]}  fxe5 {[%clk 0:02:01]} 24. Nxe5 {[%clk 0:01:45]}  Qd6 {[%clk 0:01:55]} 25. b5 {[%clk 0:01:27]}  Rd8 {[%clk 0:01:24]} 26. bxc6 {[%clk 0:01:26]}  bxc6 {[%clk 0:01:24]} 27. Qc2 {[%clk 0:01:12]}  c5 {[%clk 0:00:56]} 28. Qxc5 {[%clk 0:01:09]}  Qxc5 {[%clk 0:00:49]} 29. Rxc5 {[%clk 0:01:10]}  Rxd4 {[%clk 0:00:47]} 30. Ra5 {[%clk 0:00:56]}  Kh7 {[%clk 0:00:42]} 31. Nc6 {[%clk 0:00:55]}  Rd1+ {[%clk 0:00:41]} 32. Kh2 {[%clk 0:00:56]}  Re2 {[%clk 0:00:39]} 33. Kg3 {[%clk 0:00:49]}  Rd3+ {[%clk 0:00:38]} 34. f3 {[%clk 0:00:41]}  Rdd2 {[%clk 0:00:38]} 35. Rxa7 {[%clk 0:00:41]}  Rxg2+ {[%clk 0:00:38]} 36. Kf4 {[%clk 0:00:41]}  Ra2 {[%clk 0:00:21]} 37. Ne7 {[%clk 0:00:37]}  h5 {[%clk 0:00:15]} 38. Nf5 {[%clk 0:00:35]}  Rae2 {[%clk 0:00:11]} 39. h4 {[%clk 0:00:33]}  Rg6 {[%clk 0:00:10]} 40. a4 {[%clk 0:00:31]}  Rb2 {[%clk 0:00:09]} 41. a5 {[%clk 0:00:23]}  Rb4+ {[%clk 0:00:09]} 42. Ke3 {[%clk 0:00:23]}  Re6+ {[%clk 0:00:08]} 43. Kf2 {[%clk 0:00:21]}  Rg6 {[%clk 0:00:07]} 44. Ke3 {[%clk 0:00:21]}  Ra4 {[%clk 0:00:07]} 45. Kf2 {[%clk 0:00:19]}  Rf6 {[%clk 0:00:07]} 46. Nxg7 {[%clk 0:00:18]}  Kg6 {[%clk 0:00:07]} 47. Ne8 {[%clk 0:00:15]}  Rf5 {[%clk 0:00:07]} 48. Ra6+ {[%clk 0:00:14]}  Kh7 {[%clk 0:00:06]} 49. Nf6+ {[%clk 0:00:13]}  Kh8 {[%clk 0:00:06]} 50. Ra8+ {[%clk 0:00:08]}  Kg7 {[%clk 0:00:06]} 51. Ne8+ {[%clk 0:00:08]}  Kh7 {[%clk 0:00:04]} 52. Ra7+ {[%clk 0:00:08]}  Kg8 {[%clk 0:00:05]} 53. Ra8 {[%clk 0:00:07]}  Raxa5 {[%clk 0:00:05]} 54. Nf6+ {[%clk 0:00:04]}  Kf7 {[%clk 0:00:04]} 55. Rxa5 {[%clk 0:00:02]}  Rxa5 {[%clk 0:00:05]} 56. Ne4 {[%clk 0:00:03]}  Kg6 {[%clk 0:00:06]} 57. Kg3 {[%clk 0:00:03]}  Ra1 {[%clk 0:00:05]} 58. Ng5 {[%clk 0:00:04]}  Ra5 {[%clk 0:00:05]} 59. Ne4 {[%clk 0:00:03]}  Rd5 {[%clk 0:00:05]} 60. Ng5 {[%clk 0:00:04]}  Kf5 {[%clk 0:00:05]} 61. Ne4 {[%clk 0:00:04]}  Rd1 {[%clk 0:00:04]} 62. Ng5 {[%clk 0:00:04]}  Rg1+ {[%clk 0:00:05]} 63. Kh2 {[%clk 0:00:04]}  Ra1 {[%clk 0:00:04]} 64. Kg3 {[%clk 0:00:05]}  Ra2 {[%clk 0:00:04]} 65. Nh3 {[%clk 0:00:04]}  Ra8 {[%clk 0:00:04]} 66. Ng5 {[%clk 0:00:05]}  Rg8 {[%clk 0:00:04]} 67. Kf2 {[%clk 0:00:03]}  Kf4 {[%clk 0:00:05]} 68. Nh3+ {[%clk 0:00:03]}  Ke5 {[%clk 0:00:05]} 69. Ng5 {[%clk 0:00:03]}  Ra8 {[%clk 0:00:06]} 70. Kg3 {[%clk 0:00:03]}  Rf8 {[%clk 0:00:05]} 71. Nh3 {[%clk 0:00:02]}  Kd4 {[%clk 0:00:06]} 72. Ng5 {[%clk 0:00:02]}  Ke3 {[%clk 0:00:06]} 73. Ne6 {[%clk 0:00:01]}  Rxf3+ {[%clk 0:00:06]} 74. Kg2 {[%clk 0:00:01]}  Rf5 {[%clk 0:00:04]} 75. Ng5 {[%clk 0:00:02]}  Kf4 {[%clk 0:00:04]} 76. Kh3 {[%clk 0:00:02]}  Ra5 {[%clk 0:00:03]} 77. Ne6+ {[%clk 0:00:02]}  Ke5 {[%clk 0:00:03]} 78. Ng7 {[%clk 0:00:03]}  Ra3+ {[%clk 0:00:04]} 79. Kg2 {[%clk 0:00:03]}  Ra7 {[%clk 0:00:04]} 80. Nxh5 {[%clk 0:00:04]}  Kf5 {[%clk 0:00:04]} 81. Ng3+ {[%clk 0:00:04]}  Kg4 {[%clk 0:00:04]} 82. Ne2 {[%clk 0:00:05]}  Ra2 {[%clk 0:00:05]} 83. Kf2 {[%clk 0:00:06]}  Kxh4 {[%clk 0:00:05]} 84. Ke3 {[%clk 0:00:07]}  Kg5 {[%clk 0:00:06]} 85. Nd4 {[%clk 0:00:07]}  Ra3+ {[%clk 0:00:06]} 86. Ke4 {[%clk 0:00:07]}  Ra8 {[%clk 0:00:07]} 87. Ne6+ {[%clk 0:00:08]}  Kf6 {[%clk 0:00:07]} 88. Nc5 {[%clk 0:00:09]}  Ke7 {[%clk 0:00:08]} 89. Kd5 {[%clk 0:00:09]}  Rd8+ {[%clk 0:00:08]} 90. Ke5 {[%clk 0:00:09]}  Rh8 {[%clk 0:00:08]} 91. Ne4 {[%clk 0:00:10]}  Rh5+ {[%clk 0:00:08]} 92. Kf4 {[%clk 0:00:11]}  Ke6 {[%clk 0:00:09]} 93. Ng5+ {[%clk 0:00:11]}  Kf6 {[%clk 0:00:09]} 94. Ne4+ {[%clk 0:00:12]}  Kg6 {[%clk 0:00:10]} 95. Nd6 {[%clk 0:00:11]}  Rd5 {[%clk 0:00:09]} 96. Ne4 {[%clk 0:00:11]}  Rh5 {[%clk 0:00:09]} 97. Nd6 {[%clk 0:00:11]}  Rh4+ {[%clk 0:00:10]} 98. Ke5 {[%clk 0:00:11]}  Ra4 {[%clk 0:00:10]} 99. Ne4 {[%clk 0:00:11]}  Ra5+ {[%clk 0:00:09]} 100. Ke6 {[%clk 0:00:11]}  Rb5 {[%clk 0:00:09]} 101. Nd6 {[%clk 0:00:11]}  Rh5 {[%clk 0:00:08]} 102. Ne4 {[%clk 0:00:11]}  Rh1 {[%clk 0:00:08]} 103. Nd6 {[%clk 0:00:11]}  Re1+ {[%clk 0:00:09]} 104. Kd5 {[%clk 0:00:12]}  Kf6 {[%clk 0:00:09]} 105. Ne4+ {[%clk 0:00:12]}  Ke7 {[%clk 0:00:09]} 106. Nc5 {[%clk 0:00:11]}  Rd1+ {[%clk 0:00:08]} 107. Ke5 {[%clk 0:00:11]}  Rd2 {[%clk 0:00:08]} 108. Ne4 {[%clk 0:00:11]}  Re2 {[%clk 0:00:08]} 109. Kf5 {[%clk 0:00:12]}  Kd7 {[%clk 0:00:07]} 110. Ke5 {[%clk 0:00:12]}  Kc6 {[%clk 0:00:07]} 111. Kd4 {[%clk 0:00:13]}  Re1 {[%clk 0:00:06]} 112. Nc3 {[%clk 0:00:13]}  Rh1 {[%clk 0:00:06]} 113. Ne4 {[%clk 0:00:12]}  Rh4 {[%clk 0:00:07]} 114. Ke5 {[%clk 0:00:13]}  Kd7 {[%clk 0:00:06]} 115. Nf6+ {[%clk 0:00:13]}  Ke7 {[%clk 0:00:07]} 116. Nd5+ {[%clk 0:00:13]}  Kf7 {[%clk 0:00:06]} 117. Nf4 {[%clk 0:00:14]}  Rh1 {[%clk 0:00:05]} 118. Nd5 {[%clk 0:00:14]}  Re1+ {[%clk 0:00:05]} 119. Kd4 {[%clk 0:00:14]}  Ke6 {[%clk 0:00:05]} 120. Nc7+ {[%clk 0:00:14]}  Kd6 {[%clk 0:00:05]} 121. Nb5+ {[%clk 0:00:14]}  Kc6 {[%clk 0:00:05]} 122. Na7+ {[%clk 0:00:13]}  Kb6 {[%clk 0:00:04]} 123. Nc8+ {[%clk 0:00:14]}  Kc7 {[%clk 0:00:04]} 124. Na7 {[%clk 0:00:14]}  Rb1 {[%clk 0:00:04]} 125. Kc5 {[%clk 0:00:14]}  Rc1+ {[%clk 0:00:05]} 126. Kb5 {[%clk 0:00:13]}  Kb7 {[%clk 0:00:05]} 0-1


[Site "https://www.chess.com"]

[Event "Titled Tuesday Blitz May 03 Early 2022"]
[White "Cramling Bellon, Anna"]
[Black "Todorovic, Bojan"]
[WhiteFideId "32009232"]
[BlackFideId "917087"]
[WhiteElo "1905"]
[BlackElo "2266"]
[Result "0-1"]
[Round "10"]
[TimeControl "180+1"]
[Date "2022.05.03"]
[WhiteClock "0:00:01"]
[BlackClock "0:00:23"]

1. d4 {[%clk 0:03:00]}  Nf6 {[%clk 0:02:56]} 2. c4 {[%clk 0:03:01]}  g6 {[%clk 0:02:55]} 3. Nc3 {[%clk 0:03:00]}  Bg7 {[%clk 0:02:55]} 4. e4 {[%clk 0:02:59]}  d6 {[%clk 0:02:55]} 5. h3 {[%clk 0:03:00]}  O-O {[%clk 0:02:54]} 6. Bg5 {[%clk 0:03:00]}  c5 {[%clk 0:02:46]} 7. d5 {[%clk 0:02:54]}  b5 {[%clk 0:02:45]} 8. cxb5 {[%clk 0:02:50]}  Qa5 {[%clk 0:02:44]} 9. Qd2 {[%clk 0:02:41]}  a6 {[%clk 0:02:43]} 10. Bd3 {[%clk 0:02:30]}  Nbd7 {[%clk 0:02:33]} 11. Nf3 {[%clk 0:02:29]}  Nb6 {[%clk 0:02:24]} 12. bxa6 {[%clk 0:02:05]}  Bxa6 {[%clk 0:02:23]} 13. O-O {[%clk 0:02:01]}  Rfb8 {[%clk 0:02:15]} 14. e5 {[%clk 0:01:39]}  Bxd3 {[%clk 0:02:10]} 15. Qxd3 {[%clk 0:01:27]}  c4 {[%clk 0:02:09]} 16. Qd2 {[%clk 0:01:04]}  Nfxd5 {[%clk 0:02:06]} 17. Nxd5 {[%clk 0:00:55]}  Nxd5 {[%clk 0:02:02]} 18. Qxa5 {[%clk 0:00:45]}  Rxa5 {[%clk 0:02:01]} 19. Nd4 {[%clk 0:00:42]}  Rxb2 {[%clk 0:01:45]} 20. Nc6 {[%clk 0:00:34]}  Raxa2 {[%clk 0:01:35]} 21. Rxa2 {[%clk 0:00:22]}  Rxa2 {[%clk 0:01:35]} 22. Nxe7+ {[%clk 0:00:15]}  Nxe7 {[%clk 0:01:33]} 23. Bxe7 {[%clk 0:00:16]}  Bxe5 {[%clk 0:01:32]} 24. f4 {[%clk 0:00:13]}  Bd4+ {[%clk 0:01:24]} 25. Kh2 {[%clk 0:00:14]}  c3 {[%clk 0:01:07]} 26. f5 {[%clk 0:00:12]}  c2 {[%clk 0:01:00]} 27. fxg6 {[%clk 0:00:05]}  hxg6 {[%clk 0:00:56]} 28. Bg5 {[%clk 0:00:05]}  Ra1 {[%clk 0:00:49]} 29. Rxa1 {[%clk 0:00:03]}  Bxa1 {[%clk 0:00:48]} 30. Bc1 {[%clk 0:00:04]}  Be5+ {[%clk 0:00:36]} 31. Kg1 {[%clk 0:00:03]}  g5 {[%clk 0:00:34]} 32. Kf2 {[%clk 0:00:01]}  Bf4 {[%clk 0:00:34]} 33. Bb2 {[%clk 0:00:01]}  c1=Q {[%clk 0:00:33]} 34. Bxc1 {[%clk 0:00:02]}  Bxc1 {[%clk 0:00:33]} 35. Kf3 {[%clk 0:00:02]}  f5 {[%clk 0:00:31]} 36. g4 {[%clk 0:00:02]}  Kf7 {[%clk 0:00:30]} 37. gxf5 {[%clk 0:00:03]}  Kf6 {[%clk 0:00:30]} 38. Ke4 {[%clk 0:00:03]}  Bf4 {[%clk 0:00:28]} 39. h4 {[%clk 0:00:02]}  gxh4 {[%clk 0:00:25]} 40. Kxf4 {[%clk 0:00:02]}  d5 {[%clk 0:00:23]} 41. Kg4 {[%clk 0:00:02]}  d4 {[%clk 0:00:23]} 42. Kf3 {[%clk 0:00:01]}  d3 {[%clk 0:00:22]} 43. Ke3 {[%clk 0:00:02]}  h3 {[%clk 0:00:22]} 44. Kxd3 {[%clk 0:00:01]}  h2 {[%clk 0:00:23]} 0-1


[Site "https://www.chess.com"]